[Event "GER-ch Youth ODJM 2019"]
[Site "Willingen"]
[Date "2019.06.12"]
[Round "5.3"]
[White "Savchenko, Daniel"]
[Black "Stelmaszyk, Nico"]
[Result "0-1"]
[ECO "B34"]
[WhiteElo "2120"]
[BlackElo "2174"]
[Annotator "NA"]
[PlyCount "58"]
[EventDate "2019.06.07"]
[EventType "swiss"]
[EventRounds "9"]
[EventCountry "GER"]
[SourceTitle "playchess.com"]
[Source "ChessBase"]
[SourceQuality "1"]
[TimeControl "40/5400+30:1800+30"]

1. e4 {[%emt 0:00:00]} c5 {[%emt 0:00:00]} 2. Nf3 {[%emt 0:00:00]} Nc6 {[%emt 0:00:00]} 3. d4 {[%emt 0:00:00]} cxd4 {[%emt 0:00:00]} 4. Nxd4 {[%emt 0:00:07]} Nf6 {[%emt 0:00:06]} 5. Nc3 {[%emt 0:00:09]} e5 {[%emt 0:00:06]} 6. Ndb5 {[%emt 0:02:20]} d6 {[%emt 0:00:09]} 7. Nd5 {[%emt 0:00:10]} Nxd5 {[%emt 0:00:05]} 8. exd5 {[%emt 0:00:07]} Nb8 {[%emt 0:00:04]} 9. c4 {[%emt 0:00:33]} Be7 {[%emt 0:00:18]} 10. Be2 {[%emt 0:00:24]} O-O {[%emt 0:00:08]} 11. Be3 {[%emt 0:00:07]} a6 {[%emt 0:00:22]} 12. Nc3 {[%emt 0:00:07]} f5 {[%emt 0:00:11]} 13. f4 {[%emt 0:00:13]} Nd7 {[%emt 0:00:18]} 14. Qd2 {[%emt 0:02:41]} Bf6 {[%emt 0:00:32]} 15. O-O {[%emt 0:00:11]} exf4 {[%emt 0:00:05]} 16. Bxf4 {[%emt 0:00:07]} Ne5 {[%emt 0:00:05]} 17. Rfc1 {[%emt 0:05:33]} Bd7 {[%emt 0:04:26]} 18. Kh1 {[%emt 0:03:17]} Rc8 {[%emt 0:03:21]} 19. Nd1 {[%emt 0:00:51]} Qe7 {[%emt 0:17:49]} 20. Rab1 {[%emt 0:08:37]} Ng6 {[%emt 0:07:44]} 21. Be3 {[%emt 0:00:54]} f4 {[%emt 0:01:20]} 22. Bf2 {[%emt 0:00:39]} Bf5 {[%emt 0:01:10]} 23. Bd3 {[%emt 0:02:07]} Bxd3 {[%emt 0:03:50]} 24. Qxd3 {[%emt 0:00:06]} Ne5 {[%emt 0:00:16]} 25. Qe4 {[%emt 0:00:41]} f3 {[%emt 0:03:13]} 26. g3 {[%emt 0:00:26]} Bg5 {[%emt 0:01:53]} 27. Rc2 {[%emt 0:02:22]} Qd7 {[%emt 0:04:02]} 28. Be3 {[%emt 0:02:21]} Qh3 {[%emt 0:04:30]} 29. Bg1 {[%emt 0:05:26]} Rxc4 {[%emt 0:02:48] normal} 0-1

[Event "GER-ch Youth ODJM 2019"]
[Site "Willingen"]
[Date "2019.06.12"]
[Round "5.4"]
[White "Petersen, Finn Christopher"]
[Black "Grossmann, Piet"]
[Result "1-0"]
[ECO "C00"]
[WhiteElo "1780"]
[BlackElo "1801"]
[Annotator "NA"]
[PlyCount "73"]
[EventDate "2019.06.07"]
[EventType "swiss"]
[EventRounds "9"]
[EventCountry "GER"]
[SourceTitle "playchess.com"]
[Source "ChessBase"]
[SourceQuality "1"]
[TimeControl "40/5400+30:1800+30"]

1. e4 {[%emt 0:00:00]} e6 {[%emt 0:00:00]} 2. g3 {[%emt 0:00:00]} d5 {[%emt 0:00:00]} 3. Bg2 {[%emt 0:00:00]} c5 {[%emt 0:02:13]} 4. exd5 {[%emt 0:03:44]} exd5 {[%emt 0:00:06]} 5. Ne2 {[%emt 0:03:21]} Nf6 {[%emt 0:08:35]} 6. O-O {[%emt 0:01:12]} Be7 {[%emt 0:01:41]} 7. d4 {[%emt 0:03:16]} O-O {[%emt 0:04:32]} 8. Nbc3 {[%emt 0:05:47]} Bg4 {[%emt 0:07:26]} 9. h3 {[%emt 0:07:42]} Bxe2 {[%emt 0:01:19]} 10. Nxe2 {[%emt 0:00:45]} Nc6 {[%emt 0:26:43]} 11. c3 {[%emt 0:17:44]} h6 {[%emt 0:04:54]} 12. Rb1 {[%emt 0:05:29]} Qd7 {[%emt 0:01:32]} 13. Be3 {[%emt 0:04:35]} c4 {[%emt 0:05:01]} 14. Kh2 {[%emt 0:05:06]} Bd6 {[%emt 0:01:58]} 15. Nf4 {[%emt 0:04:10]} Bxf4 {[%emt 0:00:47]} 16. Bxf4 {[%emt 0:00:44]} Rfe8 {[%emt 0:00:17]} 17. Qf3 {[%emt 0:05:38]} Re4 {[%emt 0:03:52]} 18. Bxh6 {[%emt 0:02:55]} Ng4+ {[%emt 0:09:25]} 19. hxg4 {[%emt 0:00:46]} gxh6 {[%emt 0:00:05]} 20. Rbe1 {[%emt 0:03:45]} Rae8 {[%emt 0:01:02]} 21. Rxe4 {[%emt 0:00:35]} Rxe4 {[%emt 0:00:24]} 22. Qd1 {[%emt 0:03:13]} Re6 {[%emt 0:03:27]} 23. Bh3 {[%emt 0:04:25]} Qe7 {[%emt 0:05:17]} 24. g5 {[%emt 0:01:08]} Rg6 {[%emt 0:02:14]} 25. gxh6 {[%emt 0:00:41]} Rxh6 {[%emt 0:01:16]} 26. Qg4+ {[%emt 0:00:58]} Rg6 {[%emt 0:00:50]} 27. Qf3 {[%emt 0:00:05]} Rd6 {[%emt 0:00:46]} 28. Qe3 {[%emt 0:00:51]} Re6 {[%emt 0:00:28]} 29. Bxe6 {[%emt 0:00:06]} fxe6 {[%emt 0:00:29]} 30. Kg2 {[%emt 0:01:02]} Kg7 {[%emt 0:00:45]} 31. Rh1 {[%emt 0:00:40]} Qf6 {[%emt 0:00:03]} 32. f4 {[%emt 0:00:51]} Qg6 {[%emt 0:01:52]} 33. Kf3 {[%emt 0:00:47]} a6 {[%emt 0:05:44]} 34. g4 {[%emt 0:00:50]} a5 {[%emt 0:01:24]} 35. g5 {[%emt 0:00:54]} Nd8 {[%emt 0:00:31]} 36. Qe5+ {[%emt 0:00:30]} Kf7 {[%emt 0:00:30]} 37. Qc7+ {[%emt 0:00:00] normal} 1-0

[Event "GER-ch Youth ODJM 2019"]
[Site "Willingen"]
[Date "2019.06.12"]
[Round "5.5"]
[White "Arnold, Rubina"]
[Black "Moldovan, Tudor"]
[Result "1-0"]
[ECO "B22"]
[WhiteElo "1329"]
[BlackElo "1030"]
[Annotator "NA"]
[PlyCount "109"]
[EventDate "2019.06.07"]
[EventType "swiss"]
[EventRounds "9"]
[EventCountry "GER"]
[SourceTitle "playchess.com"]
[Source "ChessBase"]
[SourceQuality "1"]
[TimeControl "40/5400+30:1800+30"]

1. e4 {[%emt 0:00:00]} c5 {[%emt 0:02:04]} 2. c3 {[%emt 0:00:00]} e6 {[%emt 0:00:12]} 3. Nf3 {[%emt 0:00:12]} a6 {[%emt 0:00:13]} 4. d4 {[%emt 0:00:14]} d5 {[%emt 0:00:08]} 5. e5 {[%emt 0:00:15]} Bd7 {[%emt 0:00:14]} 6. Be2 {[%emt 0:00:38]} cxd4 {[%emt 0:00:14]} 7. cxd4 {[%emt 0:00:21]} Bb5 {[%emt 0:00:07]} 8. O-O {[%emt 0:01:10]} Nc6 {[%emt 0:00:22]} 9. Nc3 {[%emt 0:00:21]} Bxe2 {[%emt 0:00:10]} 10. Qxe2 {[%emt 0:00:30]} Nge7 {[%emt 0:00:14]} 11. Bg5 {[%emt 0:00:58]} Qc7 {[%emt 0:00:54]} 12. Rac1 {[%emt 0:01:45]} Nf5 {[%emt 0:01:27]} 13. Qd2 {[%emt 0:04:54]} Bb4 {[%emt 0:01:00]} 14. a3 {[%emt 0:01:33]} Be7 {[%emt 0:00:53]} 15. Rfd1 {[%emt 0:01:28]} Bxg5 {[%emt 0:01:45]} 16. Qxg5 {[%emt 0:00:27]} Qe7 {[%emt 0:00:42]} 17. Qf4 {[%emt 0:01:31]} h5 {[%emt 0:01:08]} 18. h4 {[%emt 0:01:21]} Rg8 {[%emt 0:01:26]} 19. Ne2 {[%emt 0:00:57]} Nxh4 {[%emt 0:03:43]} 20. Qxh4 {[%emt 0:00:25]} Qxh4 {[%emt 0:00:24]} 21. Nxh4 {[%emt 0:00:07]} g5 {[%emt 0:00:12]} 22. Nf3 {[%emt 0:00:33]} h4 {[%emt 0:00:19]} 23. Rd3 {[%emt 0:01:41]} Ke7 {[%emt 0:00:56]} 24. Nh2 {[%emt 0:01:12]} Rg6 {[%emt 0:00:19]} 25. Ng4 {[%emt 0:00:13]} Rh8 {[%emt 0:00:31]} 26. Nc3 {[%emt 0:00:39]} b5 {[%emt 0:00:32]} 27. Nxb5 {[%emt 0:01:41]} axb5 {[%emt 0:00:42]} 28. Rxc6 {[%emt 0:00:11]} b4 {[%emt 0:00:52]} 29. axb4 {[%emt 0:00:16]} Ra8 {[%emt 0:00:14]} 30. Rdc3 {[%emt 0:00:24]} Ra4 {[%emt 0:00:53]} 31. Rc7+ {[%emt 0:00:09]} Kf8 {[%emt 0:00:19]} 32. Rb3 {[%emt 0:00:29]} Ra1+ {[%emt 0:00:18]} 33. Kh2 Rg7 {[%emt 0:01:20]} 34. b5 {[%emt 0:00:44]} f5 {[%emt 0:00:50]} 35. Rxg7 {[%emt 0:00:16]} Kxg7 {[%emt 0:00:13]} 36. Nf6 {[%emt 0:00:11]} Ra7 {[%emt 0:00:42]} 37. b6 {[%emt 0:00:32]} Rb7 {[%emt 0:00:18]} 38. g3 {[%emt 0:00:20]} hxg3+ {[%emt 0:00:23]} 39. Kxg3 f4+ {[%emt 0:01:15]} 40. Kg4 {[%emt 0:03:45]} f3 {[%emt 0:00:22]} 41. Kxf3 {[%emt 0:30:28]} g4+ {[%emt 0:30:24]} 42. Kxg4 {[%emt 0:00:17]} Kg6 {[%emt 0:01:03]} 43. f4 {[%emt 0:00:19]} Rb8 {[%emt 0:00:47]} 44. b7 {[%emt 0:00:20]} Rxb7 {[%emt 0:00:25]} 45. Rxb7 {[%emt 0:00:19]} Kh6 {[%emt 0:00:06]} 46. b4 {[%emt 0:00:13]} Kg6 {[%emt 0:00:30]} 47. b5 {[%emt 0:00:02]} Kh6 {[%emt 0:00:18]} 48. b6 {[%emt 0:00:03]} Kg6 {[%emt 0:00:08]} 49. Rb8 {[%emt 0:00:06]} Kh6 {[%emt 0:00:21]} 50. b7 {[%emt 0:00:05]} Kg7 {[%emt 0:00:25]} 51. Rg8+ {[%emt 0:00:15]} Kh6 {[%emt 0:00:29]} 52. Re8 {[%emt 0:00:11]} Kg6 {[%emt 0:00:26]} 53. b8=Q {[%emt 0:00:15]} Kh6 {[%emt 0:00:55]} 54. Qb7 {[%emt 0:00:13]} Kg6 {[%emt 0:00:21]} 55. Qh7# {normal} 1-0

[Event "GER-ch Youth ODJM 2019"]
[Site "Willingen"]
[Date "2019.06.12"]
[Round "5.7"]
[White "von der Weyden, Louis"]
[Black "Zieringer, Sebastian"]
[Result "1/2-1/2"]
[ECO "A10"]
[WhiteElo "1670"]
[BlackElo "1825"]
[Annotator "NA"]
[PlyCount "89"]
[EventDate "2019.06.07"]
[EventType "swiss"]
[EventRounds "9"]
[EventCountry "GER"]
[SourceTitle "playchess.com"]
[Source "ChessBase"]
[SourceQuality "1"]
[TimeControl "40/5400+30:1800+30"]

1. c4 {[%emt 0:00:00]} b6 {[%emt 0:00:00]} 2. Nc3 {[%emt 0:00:00]} Bb7 {[%emt 0:00:00]} 3. e4 {[%emt 0:00:00]} e6 {[%emt 0:00:00]} 4. d3 {[%emt 0:07:18]} d5 {[%emt 0:09:19]} 5. Bf4 {[%emt 0:00:55]} d4 {[%emt 0:02:01]} 6. Nce2 {[%emt 0:05:15]} Bb4+ {[%emt 0:00:36]} 7. Bd2 {[%emt 0:00:12]} Bxd2+ {[%emt 0:00:30]} 8. Qxd2 {[%emt 0:00:06]} c5 {[%emt 0:02:17]} 9. f4 {[%emt 0:07:21]} Nf6 {[%emt 0:06:52]} 10. h3 {[%emt 0:01:27]} Nh5 {[%emt 0:02:34]} 11. Nf3 {[%emt 0:05:52]} f5 {[%emt 0:01:45]} 12. e5 {[%emt 0:06:07]} Bxf3 {[%emt 0:01:25]} 13. gxf3 {[%emt 0:00:34]} Qh4+ {[%emt 0:00:15]} 14. Kd1 {[%emt 0:00:17]} Nc6 {[%emt 0:04:47]} 15. Qe1 {[%emt 0:03:13]} Qe7 {[%emt 0:01:29]} 16. Rg1 {[%emt 0:01:34]} Nb4 {[%emt 0:02:47]} 17. Qd2 {[%emt 0:01:11]} Qd7 {[%emt 0:02:11]} 18. Ng3 {[%emt 0:02:32]} Nxg3 {[%emt 0:01:49]} 19. Rxg3 {[%emt 0:00:07]} Kf7 {[%emt 0:01:52]} 20. Qg2 {[%emt 0:01:59]} Rhg8 {[%emt 0:00:26]} 21. b3 {[%emt 0:01:19]} b5 {[%emt 0:02:29]} 22. a3 {[%emt 0:03:44]} Na6 {[%emt 0:00:43]} 23. Rb1 {[%emt 0:12:42]} Rab8 {[%emt 0:00:57]} 24. Kc1 {[%emt 0:01:04]} Qd8 {[%emt 0:05:13]} 25. Qd2 {[%emt 0:10:25]} Rb7 {[%emt 0:01:46]} 26. Rg2 {[%emt 0:01:58]} Qh4 {[%emt 0:04:15]} 27. Rb2 {[%emt 0:00:44]} Nb8 {[%emt 0:04:53]} 28. Kb1 {[%emt 0:05:55]} Nc6 {[%emt 0:00:35]} 29. Ka2 {[%emt 0:04:09]} Rgb8 {[%emt 0:00:30]} 30. Qc1 {[%emt 0:01:09]} Qd8 {[%emt 0:02:26]} 31. Qe1 {[%emt 0:01:13]} Qb6 {[%emt 0:02:06]} 32. Qf2 {[%emt 0:04:15]} Qa6 {[%emt 0:01:35]} 33. cxb5 {[%emt 0:03:39]} Nb4+ {[%emt 0:01:59]} 34. Kb1 {[%emt 0:00:25]} Qxa3 {[%emt 0:00:14]} 35. Qe1 {[%emt 0:03:14]} Rxb5 {[%emt 0:07:02]} 36. Qg3 {[%emt 0:00:57]} g6 {[%emt 0:03:12]} 37. Qh4 {[%emt 0:00:26]} Ra5 {[%emt 0:05:18]} 38. Qf6+ {[%emt 0:01:55]} Ke8 {[%emt 0:00:29]} 39. Qxe6+ {[%emt 0:01:14]} Kd8 {[%emt 0:00:11]} 40. Qd6+ {[%emt 0:00:38]} Kc8 {[%emt 0:00:15]} 41. Qe6+ {[%emt 0:32:52]} Kb7 {[%emt 0:30:48]} 42. Ra2 {[%emt 0:00:00]} Nxa2 {[%emt 0:00:00]} 43. Qd7+ {[%emt 0:00:00]} Ka6 {[%emt 0:00:00]} 44. Qe6+ {[%emt 0:00:00]} Kb7 {[%emt 0:00:00]} 45. Qd7+ {[%emt 0:00:00] normal} 1/2-1/2

[Event "GER-ch Youth ODJM 2019"]
[Site "Willingen"]
[Date "2019.06.12"]
[Round "5.8"]
[White "Reuter, Julian-Frank"]
[Black "Laag, Pascal"]
[Result "1-0"]
[ECO "C54"]
[WhiteElo "1733"]
[BlackElo "1699"]
[Annotator "NA"]
[PlyCount "49"]
[EventDate "2019.06.07"]
[EventType "swiss"]
[EventRounds "9"]
[EventCountry "GER"]
[SourceTitle "playchess.com"]
[Source "ChessBase"]
[SourceQuality "1"]
[TimeControl "40/5400+30:1800+30"]

1. e4 {[%emt 0:00:00]} e5 {[%emt 0:00:00]} 2. Nf3 {[%emt 0:00:00]} Nc6 {[%emt 0:00:00]} 3. Bc4 {[%emt 0:00:00]} Bc5 {[%emt 0:00:00]} 4. c3 {[%emt 0:00:00]} Nf6 {[%emt 0:00:01]} 5. d3 {[%emt 0:00:00]} O-O {[%emt 0:00:05]} 6. O-O {[%emt 0:00:00]} d5 {[%emt 0:00:24]} 7. exd5 {[%emt 0:00:05]} Nxd5 {[%emt 0:00:09]} 8. Re1 {[%emt 0:00:02]} Be6 {[%emt 0:00:15]} 9. Bb3 {[%emt 0:04:03]} h6 {[%emt 0:06:31]} 10. Nbd2 {[%emt 0:05:33]} Bd6 {[%emt 0:13:33]} 11. Nc4 {[%emt 0:01:35]} Nb6 {[%emt 0:07:40]} 12. Ncxe5 {[%emt 0:01:57]} Bxb3 {[%emt 0:03:08]} 13. axb3 {[%emt 0:00:21]} Nxe5 {[%emt 0:00:44]} 14. Nxe5 {[%emt 0:00:06]} Re8 {[%emt 0:01:43]} 15. Nf3 {[%emt 0:00:22]} Nd5 {[%emt 0:02:15]} 16. Rxe8+ {[%emt 0:05:31]} Qxe8 {[%emt 0:00:01]} 17. Nd4 {[%emt 0:00:30]} Qe5 {[%emt 0:01:53]} 18. g3 {[%emt 0:03:49]} a6 {[%emt 0:00:41]} 19. Qg4 {[%emt 0:01:59]} Qe1+ {[%emt 0:01:55]} 20. Kg2 {[%emt 0:00:07]} Nf6 {[%emt 0:00:11]} 21. Qe2 {[%emt 0:03:27]} Re8 {[%emt 0:00:17]} 22. Qxe1 {[%emt 0:00:40]} Rxe1 {[%emt 0:00:06]} 23. Nc2 {[%emt 0:05:21]} Re2 {[%emt 0:00:42]} 24. Ne3 {[%emt 0:00:24]} g5 {[%emt 0:08:18]} 25. Kf1 {[%emt 0:00:14] normal} 1-0

[Event "GER-ch Youth ODJM 2019"]
[Site "Willingen"]
[Date "2019.06.12"]
[Round "5.9"]
[White "Reimer, Philip"]
[Black "Knudsen, Simon"]
[Result "1/2-1/2"]
[ECO "B06"]
[WhiteElo "1891"]
[BlackElo "2166"]
[Annotator "NA"]
[PlyCount "73"]
[EventDate "2019.06.07"]
[EventType "swiss"]
[EventRounds "9"]
[EventCountry "GER"]
[SourceTitle "playchess.com"]
[Source "ChessBase"]
[SourceQuality "1"]
[TimeControl "40/5400+30:1800+30"]

1. e4 {[%emt 0:00:00]} g6 {[%emt 0:00:00]} 2. d4 {[%emt 0:00:00]} Bg7 {[%emt 0:00:00]} 3. Nc3 {[%emt 0:00:05]} d6 {[%emt 0:00:00]} 4. f4 {[%emt 0:00:11]} a6 {[%emt 0:00:00]} 5. Nf3 {[%emt 0:00:09]} b5 {[%emt 0:00:00]} 6. Bd3 {[%emt 0:00:09]} Nd7 {[%emt 0:00:00]} 7. e5 {[%emt 0:00:09]} c5 {[%emt 0:00:06]} 8. Be4 {[%emt 0:00:03]} Rb8 {[%emt 0:00:05]} 9. O-O {[%emt 0:00:05]} cxd4 {[%emt 0:00:04]} 10. Nxd4 {[%emt 0:00:02]} dxe5 {[%emt 0:00:08]} 11. Nc6 {[%emt 0:00:01]} Qb6+ {[%emt 0:07:49]} 12. Kh1 {[%emt 0:00:02]} Ngf6 {[%emt 0:00:26]} 13. Nxb8 {[%emt 0:00:02]} Qxb8 {[%emt 0:00:12]} 14. fxe5 {[%emt 0:00:02]} Nxe4 {[%emt 0:00:30]} 15. Nxe4 {[%emt 0:01:12]} Qxe5 {[%emt 0:02:56]} 16. Ng5 {[%emt 0:04:58]} O-O {[%emt 0:08:44]} 17. c3 {[%emt 0:05:17]} Qc5 {[%emt 0:29:35]} 18. Qe2 {[%emt 0:22:32]} h6 {[%emt 0:05:53]} 19. Nf3 {[%emt 0:01:23]} e5 {[%emt 0:02:38]} 20. Be3 {[%emt 0:01:21]} Qc6 {[%emt 0:00:13]} 21. Rac1 {[%emt 0:04:29]} Nb6 {[%emt 0:12:05]} 22. Nxe5 {[%emt 0:07:47]} Bxe5 {[%emt 0:13:33]} 23. Bxb6 {[%emt 0:01:01]} Bxh2 {[%emt 0:00:12]} 24. Kxh2 {[%emt 0:09:41]} Qxb6 {[%emt 0:00:38]} 25. Qf2 {[%emt 0:02:01]} Qc7+ {[%emt 0:00:26]} 26. Qf4 {[%emt 0:00:31]} Qa5 {[%emt 0:03:00]} 27. Qxh6 {[%emt 0:05:17]} Qxa2 {[%emt 0:00:07]} 28. Rf4 {[%emt 0:07:29]} Qd5 {[%emt 0:00:06]} 29. Rh4 {[%emt 0:00:50]} Qe5+ {[%emt 0:00:05]} 30. Kh1 {[%emt 0:00:13]} Qg7 {[%emt 0:00:04]} 31. Qxg7+ {[%emt 0:01:55]} Kxg7 {[%emt 0:00:05]} 32. Rb4 {[%emt 0:11:49]} Re8 {[%emt 0:02:34]} 33. Rc2 {[%emt 0:07:04]} Re1+ {[%emt 0:00:40]} 34. Kh2 {[%emt 0:00:09]} Be6 {[%emt 0:00:04]} 35. b3 {[%emt 0:01:12]} Re3 {[%emt 0:00:47]} 36. c4 {[%emt 0:01:39]} Re4 {[%emt 0:00:08]} 37. Ra2 {[%emt 0:05:03] normal} 1/2-1/2

[Event "GER-ch Youth ODJM 2019"]
[Site "Willingen"]
[Date "2019.06.12"]
[Round "5.10"]
[White "Tscheuschner, Georg"]
[Black "Hofmann, Lorenz"]
[Result "0-1"]
[ECO "D45"]
[WhiteElo "2113"]
[BlackElo "2002"]
[Annotator "NA"]
[PlyCount "116"]
[EventDate "2019.06.07"]
[EventType "swiss"]
[EventRounds "9"]
[EventCountry "GER"]
[SourceTitle "playchess.com"]
[Source "ChessBase"]
[SourceQuality "1"]
[TimeControl "40/5400+30:1800+30"]

1. c4 {[%emt 0:00:00]} c6 {[%emt 0:00:00]} 2. Nc3 {[%emt 0:00:00]} d5 {[%emt 0:00:00]} 3. d4 {[%emt 0:00:00]} Nf6 {[%emt 0:00:00]} 4. e3 {[%emt 0:00:00]} e6 {[%emt 0:00:00]} 5. Nf3 {[%emt 0:00:00]} Nbd7 {[%emt 0:00:01]} 6. Qc2 {[%emt 0:00:00]} Be7 {[%emt 0:00:09]} 7. g4 {[%emt 0:00:01]} h6 {[%emt 0:01:54]} 8. Bd2 {[%emt 0:01:15]} dxc4 {[%emt 0:02:07]} 9. Bxc4 {[%emt 0:01:52]} b5 {[%emt 0:00:15]} 10. Bb3 {[%emt 0:36:28]} Bb7 {[%emt 0:00:51]} 11. g5 {[%emt 0:02:18]} hxg5 {[%emt 0:21:30]} 12. Nxg5 {[%emt 0:05:09]} Nf8 {[%emt 0:01:21]} 13. Rg1 {[%emt 0:04:50]} Rxh2 {[%emt 0:24:06]} 14. Nce4 {[%emt 0:05:35]} Nxe4 {[%emt 0:05:53]} 15. Nxe4 {[%emt 0:01:26]} g6 {[%emt 0:03:35]} 16. O-O-O {[%emt 0:04:00]} Qc7 {[%emt 0:05:19]} 17. Nc5 {[%emt 0:16:58]} O-O-O {[%emt 0:04:57]} 18. f4 {[%emt 0:00:37]} Nd7 {[%emt 0:04:16]} 19. Bxe6 {[%emt 0:01:26]} fxe6 {[%emt 0:00:37]} 20. Nxe6 {[%emt 0:00:04]} Qd6 {[%emt 0:00:10]} 21. Nxd8 {[%emt 0:00:11]} Bxd8 {[%emt 0:00:30]} 22. Rxg6 {[%emt 0:00:05]} Qd5 {[%emt 0:00:33]} 23. Qb3 {[%emt 0:04:43]} Qxb3 {[%emt 0:05:53]} 24. axb3 {[%emt 0:00:01]} c5 {[%emt 0:00:11]} 25. Be1 {[%emt 0:08:05]} Be4 {[%emt 0:02:12]} 26. Re6 {[%emt 0:00:18]} Bd5 {[%emt 0:01:27]} 27. Re8 {[%emt 0:01:00]} Bf7 {[%emt 0:00:06]} 28. Rxd8+ {[%emt 0:01:57]} Kxd8 {[%emt 0:00:35]} 29. dxc5 {[%emt 0:00:05]} Bxb3 {[%emt 0:02:16]} 30. Rd3 {[%emt 0:01:14]} Bc4 {[%emt 0:00:03]} 31. Rd4 {[%emt 0:00:34]} Kc8 {[%emt 0:01:08]} 32. b4 {[%emt 0:00:36]} Kc7 {[%emt 0:02:52]} 33. f5 {[%emt 0:00:27]} Rh3 {[%emt 0:02:40]} 34. Bh4 {[%emt 0:01:29]} Rxe3 {[%emt 0:02:37]} 35. Bg5 {[%emt 0:00:05]} Re1+ {[%emt 0:01:17]} 36. Kd2 {[%emt 0:00:02]} Re2+ {[%emt 0:00:04]} 37. Kd1 {[%emt 0:00:07]} Re8 {[%emt 0:00:50]} 38. Bf4+ {[%emt 0:00:30]} Kc8 {[%emt 0:00:28]} 39. Rd6 {[%emt 0:01:02]} Nb8 {[%emt 0:02:06]} 40. Rh6 {[%emt 0:04:39]} Bd5 {[%emt 0:03:33]} 41. Rh7 {[%emt 0:03:12]} Nd7 {[%emt 0:01:59]} 42. Bd6 {[%emt 0:00:06]} a6 {[%emt 0:10:45]} 43. Rg7 {[%emt 0:04:40]} Re3 {[%emt 0:04:14]} 44. f6 {[%emt 0:05:15]} Rf3 {[%emt 0:01:26]} 45. c6 {[%emt 0:00:49]} Bxc6 {[%emt 0:00:31]} 46. f7 {[%emt 0:02:17]} Rd3+ {[%emt 0:00:05]} 47. Kc2 {[%emt 0:00:05]} Rxd6 {[%emt 0:00:07]} 48. Rg8+ {[%emt 0:00:27]} Kc7 {[%emt 0:00:07]} 49. f8=Q {[%emt 0:00:27]} Nxf8 {[%emt 0:00:04]} 50. Rxf8 {[%emt 0:00:05]} Rd4 {[%emt 0:00:38]} 51. Kc3 {[%emt 0:00:19]} Rc4+ {[%emt 0:00:06]} 52. Kb3 {[%emt 0:00:04]} Bd5 {[%emt 0:00:22]} 53. Rf5 {[%emt 0:00:36]} Be6 {[%emt 0:00:32]} 54. Rf6 {[%emt 0:00:06]} Kd6 {[%emt 0:00:16]} 55. Ka3 {[%emt 0:00:04]} Rc3+ {[%emt 0:00:07]} 56. Kb2 {[%emt 0:00:04]} Rb3+ {[%emt 0:00:04]} 57. Kc2 {[%emt 0:00:06]} Rxb4 {[%emt 0:00:06]} 58. Kc3 {[%emt 0:00:05]} Rh4 {[%emt 0:00:39] normal Kd4 Ke5+} 0-1

[Event "GER-ch Youth ODJM 2019"]
[Site "Willingen"]
[Date "2019.06.12"]
[Round "5.11"]
[White "Wanner, Lukas"]
[Black "Teichert, Felix"]
[Result "1-0"]
[ECO "A20"]
[WhiteElo "2099"]
[BlackElo "2027"]
[Annotator "NA"]
[PlyCount "57"]
[EventDate "2019.06.07"]
[EventType "swiss"]
[EventRounds "9"]
[EventCountry "GER"]
[SourceTitle "playchess.com"]
[Source "ChessBase"]
[SourceQuality "1"]
[TimeControl "40/5400+30:1800+30"]

1. c4 {[%emt 0:00:00]} e5 {[%emt 0:00:00]} 2. g3 {[%emt 0:00:00]} h5 {[%emt 0:00:00]} 3. Nc3 {[%emt 0:06:47]} h4 {[%emt 0:00:28]} 4. Bg2 {[%emt 0:03:26]} Nc6 {[%emt 0:00:06]} 5. e3 {[%emt 0:01:12]} Bc5 {[%emt 0:00:27]} 6. b3 {[%emt 0:01:49]} d6 {[%emt 0:00:39]} 7. Bb2 {[%emt 0:02:17]} a6 {[%emt 0:00:21]} 8. Nge2 {[%emt 0:01:02]} h3 {[%emt 0:02:34]} 9. Bxc6+ {[%emt 0:00:26]} bxc6 {[%emt 0:00:07]} 10. d4 {[%emt 0:00:30]} exd4 {[%emt 0:00:58]} 11. exd4 {[%emt 0:00:52]} Bb4 {[%emt 0:01:14]} 12. Qd2 {[%emt 0:11:10]} Nf6 {[%emt 0:02:49]} 13. O-O-O {[%emt 0:00:35]} Bf5 {[%emt 0:03:17]} 14. f3 {[%emt 0:06:24]} Qd7 {[%emt 0:03:02]} 15. g4 {[%emt 0:02:02]} Bg6 {[%emt 0:05:18]} 16. Nf4 {[%emt 0:02:57]} O-O-O {[%emt 0:09:16]} 17. Rhe1 {[%emt 0:03:42]} d5 {[%emt 0:01:56]} 18. c5 {[%emt 0:04:02]} Be4 {[%emt 0:11:16]} 19. Qe2 {[%emt 0:11:01]} Bxc3 {[%emt 0:03:53]} 20. Bxc3 {[%emt 0:01:41]} g5 {[%emt 0:00:07]} 21. Qxa6+ {[%emt 0:03:35]} Kb8 {[%emt 0:00:07]} 22. Nd3 {[%emt 0:00:13]} Bxd3 {[%emt 0:01:23]} 23. Rxd3 {[%emt 0:00:29]} Rde8 {[%emt 0:02:11]} 24. Re5 {[%emt 0:10:26]} Re6 {[%emt 0:16:09]} 25. Bd2 {[%emt 0:03:01]} Rhe8 {[%emt 0:13:15]} 26. Bxg5 {[%emt 0:05:44]} Rxe5 {[%emt 0:01:47]} 27. dxe5 {[%emt 0:00:06]} Nxg4 {[%emt 0:00:31]} 28. Rd4 {[%emt 0:00:40] normal} Rxe5 {[%emt 0:01:00]} 29. Rb4# {normal} 1-0

[Event "GER-ch Youth ODJM 2019"]
[Site "Willingen"]
[Date "2019.06.12"]
[Round "5.12"]
[White "Gorainow, Nikita"]
[Black "Hartmann, Jakob"]
[Result "1/2-1/2"]
[ECO "C50"]
[WhiteElo "1929"]
[BlackElo "2144"]
[Annotator "NA"]
[PlyCount "62"]
[EventDate "2019.06.07"]
[EventType "swiss"]
[EventRounds "9"]
[EventCountry "GER"]
[SourceTitle "playchess.com"]
[Source "ChessBase"]
[SourceQuality "1"]
[TimeControl "40/5400+30:1800+30"]

1. e4 {[%emt 0:00:00]} e5 {[%emt 0:00:00]} 2. Nf3 {[%emt 0:00:00]} Nc6 {[%emt 0:00:08]} 3. Bc4 {[%emt 0:00:00]} Bc5 {[%emt 0:00:53]} 4. O-O {[%emt 0:00:13]} Nf6 {[%emt 0:05:06]} 5. d3 {[%emt 0:00:05]} d6 {[%emt 0:00:49]} 6. c3 {[%emt 0:00:25]} a6 {[%emt 0:00:58]} 7. a4 {[%emt 0:00:26]} h6 {[%emt 0:02:54]} 8. h3 {[%emt 0:03:15]} O-O {[%emt 0:01:19]} 9. Nbd2 {[%emt 0:01:34]} Ba7 {[%emt 0:03:41]} 10. Re1 {[%emt 0:00:46]} Be6 {[%emt 0:03:35]} 11. Bxe6 {[%emt 0:02:20]} fxe6 {[%emt 0:00:14]} 12. Nf1 {[%emt 0:00:04]} Nh5 {[%emt 0:06:09]} 13. Be3 {[%emt 0:02:10]} Nf4 {[%emt 0:03:45]} 14. Kh2 {[%emt 0:05:54]} Qf6 {[%emt 0:04:01]} 15. Bxa7 {[%emt 0:05:17]} Rxa7 {[%emt 0:03:19]} 16. Re3 {[%emt 0:09:57]} g5 {[%emt 0:09:47]} 17. g3 {[%emt 0:01:47]} Ng6 {[%emt 0:01:42]} 18. Kg2 {[%emt 0:01:12]} Raa8 {[%emt 0:01:42]} 19. Qd2 {[%emt 0:06:32]} Qg7 {[%emt 0:07:08]} 20. Re2 {[%emt 0:08:13]} Rf7 {[%emt 0:07:23]} 21. N1h2 {[%emt 0:02:09]} Raf8 {[%emt 0:02:46]} 22. Rd1 {[%emt 0:07:49]} Kh8 {[%emt 0:07:41]} 23. d4 {[%emt 0:09:24]} Rg8 {[%emt 0:06:21]} 24. Kh1 {[%emt 0:00:45]} Qf8 {[%emt 0:01:37]} 25. Qe3 {[%emt 0:08:07]} Qg7 {[%emt 0:05:40]} 26. Qd2 {[%emt 0:02:55]} Rgf8 {[%emt 0:01:00]} 27. Kg2 {[%emt 0:02:22]} Rf6 {[%emt 0:01:08]} 28. Rf1 {[%emt 0:04:07]} Qf7 {[%emt 0:04:49]} 29. Qd3 {[%emt 0:06:12]} Kh7 {[%emt 0:01:33]} 30. Rd2 {[%emt 0:01:32]} Qg7 {[%emt 0:01:05]} 31. Kh1 {[%emt 0:00:45]} R6f7 {[%emt 0:02:18] normal} 1/2-1/2